Workbook

Sheet COST SUMMARY
C1: PROJECT: RICKENBACKER ARC FULL FACILITY RENOVATION | I1: Web: http://sigmaestimations.com Email: info@sigmaestimations.com
C3: LOCATION: COLUMBUS, OHIO
D6: BASE BID /ALTERNATES/ALLOWANCES | F6: COST
D7: BASE BID | F7: ='BASE BID'!P142 -> $575,090
D8: ALTERNATE #1 | F8: ='ALTERNATE #1'!P28 -> $207,703
D9: ALTERNATE #2 | F9: ='ALTERNATE #2'!P29 -> $258,737

Sheet BASE BID
C1: PROJECT: RICKENBACKER ARC FULL FACILITY RENOVATION | N1: Web: http://sigmaestimations.com Email: info@sigmaestimations.com
C3: LOCATION: COLUMBUS, OHIO
A5: ITEM # | B5: DWG # | C5: CSI #/SUB DETAIL | D5: DESCRIPTION | E5: QTY. | F5: WASTE | G5: QTY. W/ WASTAGE | H5: UNIT | I5: UNIT LABOR HOURS | J5: TOTAL LABOR HOURS | K5: PER HOUR LABOR RATE | L5: TOTAL LABOR COST | M5: UNIT MATERIAL COST | N5: TOTAL MATERIAL COST | O5: ITEM COST | P5: TRADE COST
C6: 010000 | D6: DIVISION 01 — GENERAL REQUIREMENTS
A7: =IF(H7<>"",1+MAX(A1:A6),"") -> 1 | D7: Submittal Procedures | E7: 1 | F7: 0% | G7: =E7+(E7*F7) -> 1 | H7: LS | I7: 0.00 | J7: =I7*G7 -> 0.00 | K7: 0 | L7: =K7*J7 -> 0 | M7: 0 | N7: =M7*G7 -> 0 | O7: =L7+N7 -> 0
A8: =IF(H8<>"",1+MAX(A2:A7),"") -> 2 | D8: Temporary Facilities and Controls | E8: 1 | F8: 0% | G8: 1 | H8: LS | I8: 0.00 | J8: 0.00 | K8: 0 | L8: 0 | M8: 0 | N8: 0 | O8: 0
A9: 3 | D9: Closeout Procedures | E9: 1 | F9: 0% | G9: 1 | H9: LS | I9: 0.00 | J9: 0.00 | K9: 0 | L9: 0 | M9: 0 | N9: 0 | O9: 0
A10: 4 | D10: Payment Procedures | E10: 1 | F10: 0% | G10: 1 | H10: LS | I10: 0.00 | J10: 0.00 | K10: 0 | L10: 0 | M10: 0 | N10: 0 | O10: 0
A11: 5 | D11: Contract Modification Procedures | E11: 1 | F11: 0% | G11: 1 | H11: LS | I11: 0.00 | J11: 0.00 | K11: 0 | L11: 0 | M11: 0 | N11: 0 | O11: 0
A12: 6 | D12: Maintenance & Traffic Protection | E12: 1 | F12: 0% | G12: 1 | H12: LS | I12: 0.00 | J12: 0.00 | K12: 0 | L12: 0 | M12: 0 | N12: 0 | O12: 0
D13: SUBTOTAL | L13: =IF(H13<>"",0.4*N13,"") ->  | M13: =IF(H13<>"",N13-L13,"") ->  | P13: =SUM(O7:O12) -> 0
C14: 070000 | D14: DIVISION 07 — THERMAL AND MOISTURE PROTECTION
D16: Fireproofing
D18: Fire Proofing At Columns
A19: =IF(H19<>"",1+MAX(A7:A18),"") -> 7 | B19: SF-112.SF-113 | C19: SF-114 | D19: 4-Hour Rated Spray Applied Fireproofing Around Steel Colum's (22'-8"H) | E19: 2031 | F19: 5% | G19: =E19+(E19*F19) -> 2132 | H19: SF | I19: 0.02 | J19: =I19*G19 -> 45.94 | K19: $64.31 | L19: =K19*J19 -> $2,954.53 | M19: $3.15 | N19: =M19*G19 -> $6,716.05 | O19: =L19+N19 -> $9,671
A20: =IF(H20<>"",1+MAX(A8:A19),"") -> 8 | B20: SF-112.SF-113 | C20: SF-114 | D20: 1-Hour Rated Spray Applied Fireproofing Around Steel Column (11'H) | E20: 381 | F20: 5% | G20: 401 | H20: SF | I20: 0.02 | J20: 6.63 | K20: $64.31 | L20: $426.27 | M20: $1.56 | N20: $624.86 | O20: $1,051
D22: Note: Provide spray-applied fireproofing material, including sealer, conforming to ASTM E1042, Class (a), Category A, either Type I or Type II
D24: Fire Proofing At Beams
A25: 9 | B25: SF-112.SF-113 | C25: SF-114 | D25: 4-Hour Rated Spray Applied Fireproofing at W12x22 Beam | E25: 904 | F25: 5% | G25: =E25+(E25*F25) -> 949 | H25: SF | I25: 0.02 | J25: =I25*G25 -> 20.46 | K25: $64.31 | L25: =K25*J25 -> $1,315.46 | M25: $3.15 | N25: =M25*G25 -> $2,990.22 | O25: =L25+N25 -> $4,306
A26: 10 | B26: SF-112.SF-113 | C26: SF-114 | D26: 4-Hour Rated Spray Applied Fireproofing at W12x27 Beam | E26: 135 | F26: 5% | G26: 142 | H26: SF | I26: 0.02 | J26: 3.06 | K26: $64.31 | L26: $196.67 | M26: $3.15 | N26: $447.07 | O26: $644
A27: 11 | B27: SF-112.SF-113 | C27: SF-114 | D27: 1-Hour Rated Spray Applied Fireproofing at W12x16 Beam | E27: 64 | F27: 5% | G27: 67 | H27: SF | I27: 0.02 | J27: 1.11 | K27: $64.31 | L27: $71.21 | M27: $1.56 | N27: $104.38 | O27: $176
A28: 12 | B28: SF-112.SF-113 | C28: SF-114 | D28: 1-Hour Rated Spray Applied Fireproofing at W16x36 Beam | E28: 85 | F28: 5% | G28: 90 | H28: SF | I28: 0.02 | J28: 1.48 | K28: $64.31 | L28: $95.45 | M28: $1.56 | N28: $139.92 | O28: $235
A29: 13 | B29: SF-112.SF-113 | C29: SF-114 | D29: 1-Hour Rated Spray Applied Fireproofing at W16x45 Beam | E29: 65 | F29: 5% | G29: 68 | H29: SF | I29: 0.02 | J29: 1.12 | K29: $64.31 | L29: $72.23 | M29: $1.56 | N29: $105.87 | O29: $178
A30: 14 | B30: SF-112.SF-113 | C30: SF-114 | D30: 1-Hour Rated Spray Applied Fireproofing at W10x12 Beam | E30: 116 | F30: 5% | G30: 122 | H30: SF | I30: 0.02 | J30: 2.02 | K30: $64.31 | L30: $129.94 | M30: $1.56 | N30: $190.48 | O30: $320
A31: 15 | B31: SF-112.SF-113 | C31: SF-114 | D31: 1-Hour Rated Spray Applied Fireproofing at W10x39 Beam | E31: 58 | F31: 5% | G31: 61 | H31: SF | I31: 0.02 | J31: 1.01 | K31: $64.31 | L31: $64.84 | M31: $1.56 | N31: $95.05 | O31: $160
A32: 16 | B32: SF-112.SF-113 | C32: SF-114 | D32: 1-Hour Rated Spray Applied Fireproofing at W10x15 Beam | E32: 2 | F32: 5% | G32: 2 | H32: SF | I32: 0.02 | J32: 0.04 | K32: $64.31 | L32: $2.44 | M32: $1.56 | N32: $3.58 | O32: $6
A33: 17 | B33: SF-112.SF-113 | C33: SF-114 | D33: 1-Hour Rated Spray Applied Fireproofing at W10x22 Beam | E33: 30 | F33: 5% | G33: 31 | H33: SF | I33: 0.02 | J33: 0.52 | K33: $64.31 | L33: $33.18 | M33: $1.56 | N33: $48.63 | O33: $82
A34: 18 | B34: SF-112.SF-113 | C34: SF-114 | D34: 1-Hour Rated Spray Applied Fireproofing at W12x22 Beam | E34: 66 | F34: 5% | G34: 69 | H34: SF | I34: 0.02 | J34: 1.14 | K34: $64.31 | L34: $73.20 | M34: $1.56 | N34: $107.31 | O34: $181
D36: Note: Provide spray-applied fireproofing material, including sealer, conforming to ASTM E1042, Class (a), Category A, either Type I or Type II
D38: Fire Proof Sealant
A39: 19 | B39: SF-112.SF-113 | C39: SF-114 | D39: Continuous Fire Proof Sealant At 1 Hour Rated Walls | E39: =495.19*4 -> 1981 | F39: 5% | G39: =E39+(E39*F39) -> 2080 | H39: LF | I39: 0.01 | J39: =I39*G39 -> 26.10 | K39: $64.31 | L39: =K39*J39 -> $1,678.32 | M39: $0.86 | N39: =M39*G39 -> $1,788.63 | O39: =L39+N39 -> $3,467
A40: 20 | B40: SF-112.SF-113 | C40: SF-114 | D40: Continuous Fire Safing Along Partition (As Required) | E40: =495.19 -> 495 | F40: 5% | G40: =E40+(E40*F40) -> 520 | H40: LF | I40: 0.01 | J40: =I40*G40 -> 6.52 | K40: $64.31 | L40: =K40*J40 -> $419.58 | M40: $0.82 | N40: =M40*G40 -> $426.36 | O40: =L40+N40 -> $846
A41: 21 | B41: SF-112.SF-113 | C41: SF-114 | D41: Continuous Firestop Joint Spray at CMU Wall | E41: 228 | F41: 5% | G41: =E41+(E41*F41) -> 239 | H41: LF | I41: 0.01 | J41: =I41*G41 -> 3.00 | K41: $64.31 | L41: =K41*J41 -> $193.19 | M41: $0.92 | N41: =M41*G41 -> $220.25 | O41: =L41+N41 -> $413
A42: 22 | B42: SF-112.SF-113 | C42: SF-114 | D42: 5/8" Thk Fire Seal Compound at Pipe Penetration | E42: 101 | F42: 5% | G42: =E42+(E42*F42) -> 106 | H42: LF | I42: 0.01 | J42: =I42*G42 -> 1.33 | K42: $64.31 | L42: =K42*J42 -> $85.58 | M42: $0.72 | N42: =M42*G42 -> $76.36 | O42: =L42+N42 -> $162
A43: 23 | B43: SF-112.SF-113 | C43: SF-114 | D43: 1/2" Thk Fire Seal Compound at Pipe Penetration | E43: 302 | F43: 5% | G43: =E43+(E43*F43) -> 317 | H43: LF | I43: 0.01 | J43: =I43*G43 -> 3.98 | K43: $64.31 | L43: =K43*J43 -> $255.89 | M43: $0.72 | N43: =M43*G43 -> $228.31 | O43: =L43+N43 -> $484
D45: SUBTOTAL | L45: =IF(H45<>"",0.4*N45,"") ->  | M45: =IF(H45<>"",N45-L45,"") ->  | P45: =SUM(O15:O44) -> $22,381
C46: 090000 | D46: DIVISION 09 — FINISHES
D48: Painting
D50: Wall Paint
A51: 24 | B51: I-131,I-132 | C51: I-611 | D51: P1(9'-0"H) : Interior Paint Manufacturer : Sherwin Williams Product : PROMAR 200 HP ZERO VOC Style : Eggshell Color : Repose Gray #7015 | E51: 32263 | F51: 5% | G51: =E51+(E51*F51) -> 33876 | H51: SF | I51: 0.012 | J51: =I51*G51 -> 399.74 | K51: $60.00 | L51: =K51*J51 -> $23,984.40 | M51: $0.83 | N51: =M51*G51 -> $28,049.55 | O51: =L51+N51 -> $52,034
A52: 25 | B52: I-131,I-132 | C52: I-611 | D52: P1(11'H) : Interior Paint Manufacturer : Sherwin Williams Product : PROMAR 200 HP ZERO VOC Style : Eggshell Color : Repose Gray #7015 | E52: 2425 | F52: 5% | G52: =E52+(E52*F52) -> 2546 | H52: SF | I52: 0.012 | J52: =I52*G52 -> 30.04 | K52: $60.00 | L52: =K52*J52 -> $1,802.38 | M52: $0.86 | N52: =M52*G52 -> $2,189.33 | O52: =L52+N52 -> $3,992
A53: 26 | B53: I-131,I-132 | C53: I-611 | D53: P1(14'-0"H) : Interior Paint Manufacturer : Sherwin Williams Product : PROMAR 200 HP ZERO VOC Style : Eggshell Color : Repose Gray #7015 | E53: 4782 | F53: 5% | G53: 5021 | H53: SF | I53: 0.012 | J53: 59.25 | K53: $60.00 | L53: $3,554.91 | M53: $0.82 | N53: $4,117.27 | O53: $7,672
A54: 27 | B54: I-131,I-132 | C54: I-611 | D54: P1(22'-8"H) : Interior Paint Manufacturer : Sherwin Williams Product : PROMAR 200 HP ZERO VOC Style : Eggshell Color : Repose Gray #7015 | E54: 11527 | F54: 5% | G54: 12104 | H54: SF | I54: 0.012 | J54: 142.82 | K54: $60.00 | L54: $8,569.35 | M54: $0.84 | N54: $10,167.03 | O54: $18,736
A55: 28 | B55: I-131,I-132 | C55: I-611 | D55: P1(12'-0"H) : Interior Paint Manufacturer : Sherwin Williams Product : PROMAR 200 HP ZERO VOC Style : Eggshell Color : Repose Gray #7015 | E55: 442 | F55: 5% | G55: 464 | H55: SF | I55: 0.012 | J55: 5.47 | K55: $60.00 | L55: $328.29 | M55: $0.85 | N55: $394.13 | O55: $722
D57: Note: One Coat Primer, Two Coat Paint Finish Is Assumed.
A59: 29 | B59: - | C59: - | D59: Rental Lift For Paint Installation (12'-0" H) | E59: 442 | F59: 5% | G59: =E59+(E59*F59) -> 464 | H59: SF | I59: 0.029 | J59: =I59*G59 -> 13.39 | K59: $60.00 | L59: =K59*J59 -> $803.46 | M59: 0 | N59: =M59*G59 -> 0 | O59: =L59+N59 -> $803
A60: 30 | B60: - | C60: - | D60: Rental Lift For Paint Installation (22'-8" H) | E60: 11527 | F60: 5% | G60: =E60+(E60*F60) -> 12104 | H60: SF | I60: 0.029 | J60: =I60*G60 -> 349.55 | K60: $60.00 | L60: =K60*J60 -> $20,973.12 | M60: 0 | N60: =M60*G60 -> 0 | O60: =L60+N60 -> $20,973
A61: 31 | B61: - | C61: - | D61: Rental Lift For Paint Installation (14'-0" H) | E61: 4782 | F61: 5% | G61: =E61+(E61*F61) -> 5021 | H61: SF | I61: 0.029 | J61: =I61*G61 -> 145.01 | K61: $60.00 | L61: =K61*J61 -> $8,700.49 | M61: 0 | N61: =M61*G61 -> 0 | O61: =L61+N61 -> $8,700
D63: CMU Paint
A64: 32 | B64: I-131,I-132 | C64: I-611 | D64: P1(14'-8"H) : Interior CMU Paint Manufacturer : Sherwin Williams Product : Moisture Vapor Barrier Interior Latex Primer Sealer | E64: 3343 | F64: 5% | G64: =E64+(E64*F64) -> 3510 | H64: SF | I64: 0.012 | J64: =I64*G64 -> 41.42 | K64: $60.00 | L64: =K64*J64 -> $2,485.40 | M64: $0.92 | N64: =M64*G64 -> $3,229.62 | O64: =L64+N64 -> $5,715
D66: Note: One Coat Primer, Two Coat Paint Finish Is Assumed.
A68: 33 | D68: Rental Lift For Paint Installation (14'-8" H) | E68: 3343 | F68: 5% | G68: =E68+(E68*F68) -> 3510 | H68: SF | I68: 0.029 | J68: =I68*G68 -> 101.38 | K68: $60.00 | L68: =K68*J68 -> $6,082.92 | M68: 0 | N68: =M68*G68 -> 0 | O68: =L68+N68 -> $6,083
D70: Ceiling Paint
A71: 34 | B71: AE-131,AE-132 | C71: I-611 | D71: CL5 : Cement Board With Skim Coat | E71: 97 | F71: 5% | G71: =E71+(E71*F71) -> 102 | H71: SF | I71: 0.025 | J71: =I71*G71 -> 2.53 | K71: $60.00 | L71: =K71*J71 -> $151.91 | M71: $0.94 | N71: =M71*G71 -> $95.97 | O71: =L71+N71 -> $248
A72: 35 | B72: AE-131,AE-132 | C72: I-611 | D72: Paint On Gypsum Board Ceiling | E72: =135+32.6*1.25+19.1*1.5 -> 204 | F72: 5% | G72: 215 | H72: SF | I72: 0.025 | J72: 5.32 | K72: $60.00 | L72: $319.35 | M72: $1.06 | N72: $227.50 | O72: $547
A73: 36 | B73: AE-131,AE-132 | C73: I-611 | D73: Ceiling Paint Flat White | E73: 48 | F73: 5% | G73: 50 | H73: SF | I73: 0.025 | J73: 1.24 | K73: $60.00 | L73: $74.60 | M73: $1.06 | N73: $53.15 | O73: $128
A74: 37 | B74: AE-131,AE-132 | C74: I-611 | D74: Paint on Exposed Trusses, Beams and Metal Roof Deck (As Required) | E74: 15676 | F74: 5% | G74: 16460 | H74: SF | I74: 0.027 | J74: 441.12 | K74: $60.00 | L74: $26,467.36 | M74: $1.24 | N74: $20,410.15 | O74: $46,878
D76: Note: One Coat Primer, Two Coat Paint Finish Is Assumed.
D78: Special Coatings
A79: 38 | B79: I-131,I-132 | C79: I-611 | D79: SC1 : Clear Coat Sealer Manufacturer : Sherwin Williams Product : H&C Clear Coat High Performance Industrial Coat Color : Clear | E79: 19341 | F79: 5% | G79: =E79+(E79*F79) -> 20308 | H79: SF | I79: 0.019 | J79: =I79*G79 -> 381.79 | K79: $60.00 | L79: =K79*J79 -> $22,907.48 | M79: $1.19 | N79: =M79*G79 -> $24,166.58 | O79: =L79+N79 -> $47,074
A80: 39 | B80: I-131,I-132 | C80: I-611 | D80: EPX1 : Polysynaptic Floor Coating Manufacture : Hello Garage | E80: 10270 | F80: 5% | G80: 10784 | H80: SF | I80: 0.025 | J80: 266.14 | K80: $60.00 | L80: $15,968.21 | M80: $1.32 | N80: $14,234.22 | O80: $30,202
D82: Door Paint
A83: 40 | B83: AE-604 | C83: I-611 | D83: Paint on (3'-0"x7'-0") Hollow Metal Door w/Hollow Metal Frame(1 Side Only) Manufacturer : Sherwin Williams Product : PRO INDUSTRIAL ACRYLIC Style: Semi-Gloss Color: Dorian Gray #7017 | E83: 6 | F83: 0% | G83: =E83+(E83*F83) -> 6 | H83: EA | I83: 0.407 | J83: =I83*G83 -> 2.44 | K83: $60.00 | L83: =K83*J83 -> $146.64 | M83: $135.00 | N83: =M83*G83 -> $810.00 | O83: =L83+N83 -> $957
A84: =IF(H84<>"",1+MAX(A72:A83),"") -> 41 | B84: AE-604 | C84: I-611 | D84: Paint on (6'-0"x7'-0") Hollow Metal Door w/Hollow Metal Frame(1 Side Only) Manufacturer : Sherwin Williams Product : PRO INDUSTRIAL ACRYLIC Style : Semi-Gloss Color : Dorian Gray #7017 | E84: 1 | F84: 0% | G84: =E84+(E84*F84) -> 1 | H84: EA | I84: 0.407 | J84: =I84*G84 -> 0.41 | K84: $60.00 | L84: =K84*J84 -> $24.44 | M84: $160.00 | N84: =M84*G84 -> $160.00 | O84: =L84+N84 -> $184
A85: 42 | B85: AE-604 | C85: I-611 | D85: Paint on (3'-0"x7'-0") Hollow Metal Door w/Hollow Metal Frame(P2) Manufacturer : Sherwin Williams Product : PRO INDUSTRIAL ACRYLIC Style : Semi-Gloss Color : Dorian Gray #7017 | E85: 10 | F85: 0% | G85: 10 | H85: EA | I85: 0.407 | J85: 4.07 | K85: $60.00 | L85: $244.40 | M85: $135.00 | N85: $1,350.00 | O85: $1,594
A86: 43 | B86: AE-604 | C86: I-611 | D86: Paint on (3'-0"x7'-0") Solid Core Wood Door w/Hollow Metal Frame(P2) Manufacturer : Sherwin Williams Product : PRO INDUSTRIAL ACRYLIC Style : Semi-Gloss Color : Dorian Gray #7017 | E86: 41 | F86: 0% | G86: 41 | H86: EA | I86: 0.407 | J86: 16.70 | K86: $60.00 | L86: $1,002.06 | M86: $135.00 | N86: $5,535.00 | O86: $6,537
A87: 44 | B87: AE-604 | C87: I-611 | D87: Paint on (6'-0"x7'-0") Solid Core Wood Door w/Hollow Metal Frame(P2) Manufacturer : Sherwin Williams Product : PRO INDUSTRIAL ACRYLIC Style : Semi-Gloss Color : Dorian Gray #7017 | E87: 5 | F87: 0% | G87: 5 | H87: EA | I87: 0.407 | J87: 2.04 | K87: $60.00 | L87: $122.20 | M87: $160.00 | N87: $800.00 | O87: $922
A88: 45 | B88: AE-604 | C88: I-611 | D88: Paint on (5'-0"x9'-0") Solid Core Wood Door w/Hollow Metal Frame(P2) Manufacturer : Sherwin Williams Product : PRO INDUSTRIAL ACRYLIC Style : Semi-Gloss Color : Dorian Gray #7017 | E88: 2 | F88: 0% | G88: 2 | H88: EA | I88: 0.407 | J88: 0.81 | K88: $60.00 | L88: $48.88 | M88: $165.00 | N88: $330.00 | O88: $379
A89: 46 | B89: AE-604 | C89: I-611 | D89: Paint on (6'-0"x7'-0") Hollow Metal Door w/Hollow Metal Frame(P2) Manufacturer : Sherwin Williams Product : PRO INDUSTRIAL ACRYLIC Style : Semi-Gloss Color : Dorian Gray #7017 | E89: 3 | F89: 0% | G89: 3 | H89: EA | I89: 0.407 | J89: 1.22 | K89: $60.00 | L89: $73.32 | M89: $160.00 | N89: $480.00 | O89: $553
A90: 47 | B90: AE-604 | C90: I-611 | D90: Paint on (6'-0"x8'-0") Hollow Metal Door w/Hollow Metal Frame(P2) Manufacturer : Sherwin Williams Product : PRO INDUSTRIAL ACRYLIC Style : Semi-Gloss Color : Dorian Gray #7017 | E90: 1 | F90: 0% | G90: 1 | H90: EA | I90: 0.407 | J90: 0.41 | K90: $60.00 | L90: $24.44 | M90: $170.00 | N90: $170.00 | O90: $194
A91: 48 | B91: AE-604 | C91: I-611 | D91: Paint on (10'-0"x4'-0") Coiling Steel Door(P2) Manufacturer : Sherwin Williams Product : PRO INDUSTRIAL ACRYLIC Style : Semi-Gloss Color : Dorian Gray #7017 | E91: 1 | F91: 0% | G91: 1 | H91: EA | I91: 0.407 | J91: 0.41 | K91: $60.00 | L91: $24.44 | M91: $150.00 | N91: $150.00 | O91: $174
A92: 49 | B92: AE-604 | C92: I-611 | D92: Paint on (10'-0"x10'-0") Coiling Steel Door(P2) Manufacturer : Sherwin Williams Product : PRO INDUSTRIAL ACRYLIC Style : Semi-Gloss Color : Dorian Gray #7017 | E92: 1 | F92: 0% | G92: 1 | H92: EA | I92: 0.407 | J92: 0.41 | K92: $60.00 | L92: $24.44 | M92: $190.00 | N92: $190.00 | O92: $214
A93: 50 | B93: AE-604 | C93: I-611 | D93: Paint on (4'-0"x4'-0") Coiling Steel Door(P2) Manufacturer : Sherwin Williams Product : PRO INDUSTRIAL ACRYLIC Style : Semi-Gloss Color : Dorian Gray #7017 | E93: 1 | F93: 0% | G93: 1 | H93: EA | I93: 0.407 | J93: 0.41 | K93: $60.00 | L93: $24.44 | M93: $125.00 | N93: $125.00 | O93: $149
A94: 51 | B94: AE-604 | C94: I-611 | D94: Paint on (6'-0"x7'-0") Hollow Metal Door w/Hollow Metal Frame(P3) Manufacturer : Sherwin Williams Style : Semi-Gloss Color : Dorian Gray #7017 | E94: 3 | F94: 0% | G94: 3 | H94: EA | I94: 0.407 | J94: 1.22 | K94: $60.00 | L94: $73.32 | M94: $160.00 | N94: $480.00 | O94: $553
A95: 52 | B95: AE-604 | C95: I-611 | D95: Paint on (10'-0"x10'-0") Coiling Steel Door(P3) Manufacturer : Sherwin Williams Style : Semi-Gloss Color : Dorian Gray #7017 | E95: 1 | F95: 0% | G95: 1 | H95: EA | I95: 0.407 | J95: 0.41 | K95: $60.00 | L95: $24.44 | M95: $190.00 | N95: $190.00 | O95: $214
A96: 53 | B96: AE-604 | C96: I-611 | D96: Paint on (3'-0"x7'-0") Hollow Metal Door w/Hollow Metal Frame(P3) Manufacturer : Sherwin Williams Style : Semi-Gloss Color : Dorian Gray #7017 | E96: 2 | F96: 0% | G96: 2 | H96: EA | I96: 0.407 | J96: 0.81 | K96: $60.00 | L96: $48.88 | M96: $135.00 | N96: $270.00 | O96: $319
A97: 54 | B97: AE-604 | C97: I-611 | D97: Paint on (3'-0"x7'-0") Hollow Metal Door w/Hollow Metal Frame(1 Side Only) Manufacturer : Sherwin Williams Style : Semi-Gloss Color : Dorian Gray #7017 | E97: 6 | F97: 0% | G97: 6 | H97: EA | I97: 0.407 | J97: 2.44 | K97: $60.00 | L97: $146.64 | M97: $135.00 | N97: $810.00 | O97: $957
A98: 55 | B98: AE-604 | C98: I-611 | D98: Paint on (6'-0"x7'-0") Hollow Metal Door w/Hollow Metal Frame((1 Side Only)) Manufacturer : Sherwin Williams Style : Semi-Gloss Color : Dorian Gray #7017 | E98: 1 | F98: 0% | G98: 1 | H98: EA | I98: 0.407 | J98: 0.41 | K98: $60.00 | L98: $24.44 | M98: $160.00 | N98: $160.00 | O98: $184
D100: Note: One Coat Primer, Two Coat Paint Finish Is Assumed.
D102: Door Trim Paint
A103: 56 | B103: AE-604 | C103: I-611 | D103: Paint On Door Trim Manufacturer : Sherwin Williams Style : Semi-Gloss Color : Dorian Gray #7017 | E103: 2802 | F103: 5% | G103: =E103+(E103*F103) -> 2942 | H103: LF | I103: 0.014 | J103: =I103*G103 -> 40.04 | K103: $60.00 | L103: =K103*J103 -> $2,402.36 | M103: $1.42 | N103: =M103*G103 -> $4,177.78 | O103: =L103+N103 -> $6,580
D105: Note: One Coat Primer, Two Coat Paint Finish Is Assumed.
D107: Exterior Paint
A108: 57 | B108: AE-201 | C108: AE-201 | D108: EP1 : Exterior Paint(Power Wash, Prepare & Paint) Color : Off White Manufacturer : Sherwin Williams Model No : LOXON XP LX21-50 PERM 18 Or EQ | E108: 17305 | F108: 5% | G108: =E108+(E108*F108) -> 18170 | H108: SF | I108: 0.020 | J108: =I108*G108 -> 371.16 | K108: $60.00 | L108: =K108*J108 -> $22,269.88 | M108: $1.36 | N108: =M108*G108 -> $24,711.54 | O108: =L108+N108 -> $46,981
A109: 58 | B109: AE-201 | C109: AE-201 | D109: EP2 : Exterior Paint(Power Wash, Prepare & Paint) Color : Beige MFR : Sherwin Williams Model No : LOXON XP LX21-50 PERM 18 Or EQ | E109: 15545 | F109: 5% | G109: 16322 | H109: SF | I109: 0.020 | J109: =I109*G109 -> 333.42 | K109: $60.00 | L109: =K109*J109 -> $20,004.93 | M109: $1.36 | N109: =M109*G109 -> $22,198.26 | O109: =L109+N109 -> $42,203
A110: 59 | B110: AE-201 | C110: AE-201 | D110: EP3 : Exterior Paint(Power Wash, Prepare & Paint) Color : Dark Brown Manufacturer : Sherwin Williams Model No : LOXON XP LX21-50 PERM 18 Or EQ | E110: 3342 | F110: 5% | G110: 3509 | H110: SF | I110: 0.020 | J110: 71.68 | K110: $60.00 | L110: $4,300.96 | M110: $1.36 | N110: $4,772.52 | O110: $9,073
A111: 60 | B111: AE-201 | C111: AE-201 | D111: EP4 : Exterior Trim Paint(Power Wash, Prepare & Paint) Color : Dark Brown Manufacturer : Sherwin Williams Model No : LOXON XP LX21-50 PERM 18 Or EQ | E111: 59 | F111: 5% | G111: 61 | H111: SF | I111: 0.018 | J111: 1.13 | K111: $60.00 | L111: $67.91 | M111: $1.13 | N111: $69.41 | O111: $137
D113: Note: One Coat Primer, Two Coat Paint Finish Is Assumed.
A115: 61 | B115: - | C115: - | D115: Rental Lift For Paint Installation (26'-10" H) | E115: 36251 | F115: 5% | G115: 38064 | H115: SF | I115: 0.029 | J115: =I115*G115 -> 1099.28 | K115: $60.00 | L115: =K115*J115 -> $65,956.52 | M115: 0 | N115: =M115*G115 -> 0 | O115: =L115+N115 -> $65,957
D117: Railing Paint
A118: 62 | B118: AE-102,AE-112 | C118: I-131,I-132 | D118: Paint On Guard Rail (3'-6"H) | E118: =142.18+163.58*1.53 -> 392 | F118: 5% | G118: =E118+(E118*F118) -> 412 | H118: LF | I118: 0.02 | J118: =I118*G118 -> 8.10 | K118: $38.14 | L118: =K118*J118 -> $308.96 | M118: $3.14 | N118: =M118*G118 -> $1,293.93 | O118: =L118+N118 -> $1,603
A119: 63 | B119: AE-102,AE-112 | C119: I-131,I-132 | D119: Paint on Hand Rail (3'-0"H) | E119: =163.58+19.44 -> 183 | F119: 5% | G119: 192 | H119: LF | I119: 0.01 | J119: 2.82 | K119: $38.14 | L119: $107.43 | M119: $2.45 | N119: $470.82 | O119: $578
D121: Note: One Coat Primer, Two Coat Paint Finish Is Assumed.
D123: SUBTOTAL | L123: =IF(H123<>"",0.4*N123,"") ->  | P123: =SUM(O47:O122) -> $437,709
C124: 320000 | D124: DIVISION 32 — EXTERIOR IMPROVEMENTS
D126: Site Paint
A127: 64 | B127: CG-101 | C127: CG-101 | D127: 4"W Pavement Marking | E127: 900 | F127: 5% | G127: =E127+(E127*F127) -> 945 | H127: LF | I127: 0.016 | J127: =I127*G127 -> 15.25 | K127: $68.42 | L127: =K127*J127 -> $1,043.34 | M127: $1.19 | N127: =M127*G127 -> $1,124.34 | O127: =L127+N127 -> $2,168
A128: 65 | B128: CG-101 | C128: CG-101 | D128: (5'-0"x4'-8") Handicap Parking Symbol | E128: 7 | F128: 0% | G128: 7 | H128: EA | I128: 0.24 | J128: 1.70 | K128: $68.42 | L128: $116.57 | M128: $29.48 | N128: $206.36 | O128: $323
D130: Misc. Paint
A131: 66 | B131: AE-102,AE-112 | C131: I-131,I-132 | D131: Paint On 6" Dia Post w/ Cap (7'-2"H) | E131: 2 | F131: 0% | G131: =E131+(E131*F131) -> 2 | H131: EA | I131: 0.28 | J131: =I131*G131 -> 0.57 | K131: $68.42 | L131: =K131*J131 -> $38.78 | M131: $26.52 | N131: =M131*G131 -> $53.04 | O131: =L131+N131 -> $92
A132: 67 | B132: AE-102,AE-112 | C132: I-131,I-132 | D132: Paint On 8" Dia Bollard w/ Cap (5'-2"H) | E132: 45 | F132: 0% | G132: =E132+(E132*F132) -> 45 | H132: EA | I132: 0.22 | J132: =I132*G132 -> 9.76 | K132: $68.42 | L132: =K132*J132 -> $667.94 | M132: $38.18 | N132: =M132*G132 -> $1,718.10 | O132: =L132+N132 -> $2,386
A133: 68 | B133: AE-102,AE-112 | C133: I-131,I-132 | D133: Paint on (10'-0"x6'-10) Enclosure Gate | E133: 2 | F133: 0% | G133: 2 | H133: EA | I133: 0.407 | J133: 0.81 | K133: $68.42 | L133: $55.74 | M133: $235.00 | N133: $470.00 | O133: $526
A134: 69 | B134: AE-102,AE-112 | C134: I-131,I-132 | D134: Paint on 1'-8" Dia Trademark US Army Reserves "Jhon Parker Logo) Color : To Match 2/90 Sign System "805 Pineapple and 756 Sapphire Blue" | E134: 1 | F134: 0% | G134: 1 | H134: EA | I134: 0.26 | J134: 0.26 | K134: $68.42 | L134: $18.12 | M134: $16.48 | N134: $16.48 | O134: $35
A135: 70 | B135: AE-102,AE-112 | C135: I-131,I-132 | D135: Paint On 9"W Accent Stripe To Match 2/90 Sign Systems "104 Brushed Nickel" | E135: 15 | F135: 5% | G135: =E135+(E135*F135) -> 16 | H135: LF | I135: 0.018 | J135: 0.28 | K135: $68.42 | L135: $19.47 | M135: $1.38 | N135: $21.65 | O135: $41
A137: =IF(H137<>"",1+MAX(A125:A136),"") ->  | D137: SUBTOTAL | L137: =IF(H137<>"",0.4*N137,"") ->  | M137: =IF(H137<>"",N137-L137,"") ->  | P137: =SUM(O125:O136) -> $5,570
A138: SUB TOTAL | L138: =SUM(L6:L137) -> $270,698 | N138: =SUM(N6:N137) -> $194,962 | O138: =SUM(O6:O137) -> $465,660 | P138: =SUM(P6:P137) -> $465,660
A139: TAX | N139: 8.5% | P139: =P138*N139 -> $39,581
A140: PROFIT | N140: 10% | P140: =P138*N140 -> $46,566
A141: CONTIGENCIES | N141: 5% | P141: =P138*N141 -> $23,283
A142: TOTAL BASE BID | P142: =SUM(P138:P141) -> $575,090
A143: General Exclusions: Any kind of controlled inspection, contaminated material, architect and engineering fees, security, building charges, signage, sign off, protection of adjoining building (if any), any work not mentioned above.
A144: General Notes: The prices used are taken from RS Means online i.e. the standard pricing, the company is not responsible for any kind of variations in the prices. So it is preferred to review the prices.

Sheet ALTERNATE #1
C1: PROJECT: RICKENBACKER ARC FULL FACILITY RENOVATION | N1: Web: http://sigmaestimations.com Email: info@sigmaestimations.com
C3: LOCATION: COLUMBUS, OHIO
A5: ITEM # | B5: DWG # | C5: CSI #/SUB DETAIL | D5: DESCRIPTION | E5: QTY. | F5: WASTE | G5: QTY. W/ WASTAGE | H5: UNIT | I5: UNIT LABOR HOURS | J5: TOTAL LABOR HOURS | K5: PER HOUR LABOR RATE | L5: TOTAL LABOR COST | M5: UNIT MATERIAL COST | N5: TOTAL MATERIAL COST | O5: ITEM COST | P5: TRADE COST
C6: 010000 | D6: DIVISION 01 — GENERAL REQUIREMENTS
A7: =IF(H7<>"",1+MAX(A1:A6),"") -> 1 | D7: Submittal Procedures | E7: 1 | F7: 0% | G7: =E7+(E7*F7) -> 1 | H7: LS | I7: 0.00 | J7: =I7*G7 -> 0.00 | K7: 0 | L7: =K7*J7 -> 0 | M7: 0 | N7: =M7*G7 -> 0 | O7: =L7+N7 -> 0
A8: =IF(H8<>"",1+MAX(A2:A7),"") -> 2 | D8: Temporary Facilities and Controls | E8: 1 | F8: 0% | G8: 1 | H8: LS | I8: 0.00 | J8: 0.00 | K8: 0 | L8: 0 | M8: 0 | N8: 0 | O8: 0
A9: 3 | D9: Closeout Procedures | E9: 1 | F9: 0% | G9: 1 | H9: LS | I9: 0.00 | J9: 0.00 | K9: 0 | L9: 0 | M9: 0 | N9: 0 | O9: 0
A10: 4 | D10: Payment Procedures | E10: 1 | F10: 0% | G10: 1 | H10: LS | I10: 0.00 | J10: 0.00 | K10: 0 | L10: 0 | M10: 0 | N10: 0 | O10: 0
A11: 5 | D11: Contract Modification Procedures | E11: 1 | F11: 0% | G11: 1 | H11: LS | I11: 0.00 | J11: 0.00 | K11: 0 | L11: 0 | M11: 0 | N11: 0 | O11: 0
A12: 6 | D12: Maintenance & Traffic Protection | E12: 1 | F12: 0% | G12: 1 | H12: LS | I12: 0.00 | J12: 0.00 | K12: 0 | L12: 0 | M12: 0 | N12: 0 | O12: 0
D13: SUBTOTAL | L13: =IF(H13<>"",0.4*N13,"") ->  | M13: =IF(H13<>"",N13-L13,"") ->  | P13: =SUM(O7:O12) -> 0
C14: 090000 | D14: DIVISION 09 — FINISHES
D16: Painting
D18: Exterior Paint
A19: =IF(H19<>"",1+MAX(A7:A18),"") -> 7 | B19: AE-201 | C19: AE-201 | D19: Encapsulating primer on the exterior of the building prior to application of the finish coats of paint | E19: 36251 | F19: 5% | G19: =E19+(E19*F19) -> 38064 | H19: SF | I19: 0.020 | J19: =I19*G19 -> 777.53 | K19: $60.00 | L19: =K19*J19 -> $46,651.57 | M19: $1.46 | N19: =M19*G19 -> $55,572.78 | O19: =L19+N19 -> $102,224
A20: =IF(H20<>"",1+MAX(A8:A19),"") -> 
A21: 8 | D21: Rental Lift For Paint Installation (26'-10" H) | E21: 36251 | F21: 5% | G21: =E21+(E21*F21) -> 38064 | H21: SF | I21: 0.029 | J21: =I21*G21 -> 1099.28 | K21: $60.00 | L21: =K21*J21 -> $65,956.52 | M21: 0 | N21: =M21*G21 -> 0 | O21: =L21+N21 -> $65,957
A22: =IF(H22<>"",1+MAX(#REF!),"") -> 
A23: =IF(H23<>"",1+MAX(A22:A22),"") ->  | D23: SUBTOTAL | L23: =IF(H23<>"",0.4*N23,"") ->  | P23: =SUM(O15:O22) -> $168,181
A24: SUB TOTAL | L24: =SUM(L6:L23) -> $112,608 | N24: =SUM(N6:N23) -> $55,573 | O24: =SUM(O6:O23) -> $168,181 | P24: =SUM(P6:P23) -> $168,181
A25: TAX | N25: 8.5% | P25: =P24*N25 -> $14,295
A26: PROFIT | N26: 10% | P26: =P24*N26 -> $16,818
A27: CONTIGENCIES | N27: 5% | P27: =P24*N27 -> $8,409
A28: TOTAL BASE BID | P28: =SUM(P24:P27) -> $207,703
A29: General Exclusions: Any kind of controlled inspection, contaminated material, architect and engineering fees, security, building charges, signage, sign off, protection of adjoining building (if any), any work not mentioned above.
A30: General Notes: The prices used are taken from RS Means online i.e. the standard pricing, the company is not responsible for any kind of variations in the prices. So it is preferred to review the prices.

Sheet ALTERNATE #2
C1: PROJECT: RICKENBACKER ARC FULL FACILITY RENOVATION | N1: Web: http://sigmaestimations.com Email: info@sigmaestimations.com
C3: LOCATION: COLUMBUS, OHIO
A5: ITEM # | B5: DWG # | C5: CSI #/SUB DETAIL | D5: DESCRIPTION | E5: QTY. | F5: WASTE | G5: QTY. W/ WASTAGE | H5: UNIT | I5: UNIT LABOR HOURS | J5: TOTAL LABOR HOURS | K5: PER HOUR LABOR RATE | L5: TOTAL LABOR COST | M5: UNIT MATERIAL COST | N5: TOTAL MATERIAL COST | O5: ITEM COST | P5: TRADE COST
C6: 010000 | D6: DIVISION 01 — GENERAL REQUIREMENTS
A7: =IF(H7<>"",1+MAX(A1:A6),"") -> 1 | D7: Submittal Procedures | E7: 1 | F7: 0% | G7: =E7+(E7*F7) -> 1 | H7: LS | I7: 0.00 | J7: =I7*G7 -> 0.00 | K7: 0 | L7: =K7*J7 -> 0 | M7: 0 | N7: =M7*G7 -> 0 | O7: =L7+N7 -> 0
A8: =IF(H8<>"",1+MAX(A2:A7),"") -> 2 | D8: Temporary Facilities and Controls | E8: 1 | F8: 0% | G8: 1 | H8: LS | I8: 0.00 | J8: 0.00 | K8: 0 | L8: 0 | M8: 0 | N8: 0 | O8: 0
A9: 3 | D9: Closeout Procedures | E9: 1 | F9: 0% | G9: 1 | H9: LS | I9: 0.00 | J9: 0.00 | K9: 0 | L9: 0 | M9: 0 | N9: 0 | O9: 0
A10: 4 | D10: Payment Procedures | E10: 1 | F10: 0% | G10: 1 | H10: LS | I10: 0.00 | J10: 0.00 | K10: 0 | L10: 0 | M10: 0 | N10: 0 | O10: 0
A11: 5 | D11: Contract Modification Procedures | E11: 1 | F11: 0% | G11: 1 | H11: LS | I11: 0.00 | J11: 0.00 | K11: 0 | L11: 0 | M11: 0 | N11: 0 | O11: 0
A12: 6 | D12: Maintenance & Traffic Protection | E12: 1 | F12: 0% | G12: 1 | H12: LS | I12: 0.00 | J12: 0.00 | K12: 0 | L12: 0 | M12: 0 | N12: 0 | O12: 0
D13: SUBTOTAL | L13: =IF(H13<>"",0.4*N13,"") ->  | M13: =IF(H13<>"",N13-L13,"") ->  | P13: =SUM(O7:O12) -> 0
C14: 090000 | D14: DIVISION 09 — FINISHES
D16: Painting
D18: Exterior Paint
A19: =IF(H19<>"",1+MAX(A7:A18),"") -> 7 | B19: AE-201 | C19: AE-201 | D19: Provide A Price To Assume That The Building Is Stripped (Removal) Of All Exterior Paint Products | E19: 36251 | F19: 5% | G19: =E19+(E19*F19) -> 38064 | H19: SF | I19: 0.020 | J19: =I19*G19 -> 777.53 | K19: $60.00 | L19: =K19*J19 -> $46,651.57 | M19: 0 | N19: =M19*G19 -> 0 | O19: =L19+N19 -> $46,652
A20: =IF(H20<>"",1+MAX(A8:A19),"") -> 8 | B20: AE-201 | C20: AE-201 | D20: Installation Of A Sealing Primer Acceptable To Be Applied To CMU Block Prior To Installation Of Finish Paint | E20: 36251 | F20: 5% | G20: =E20+(E20*F20) -> 38064 | H20: SF | I20: 0.020 | J20: 777.53 | K20: $60.00 | L20: $46,651.57 | M20: $1.32 | N20: $50,243.89 | O20: $96,895
A22: 9 | D22: Rental Lift For Paint Installation(26'-10" H) | E22: 36251 | F22: 5% | G22: 38064 | H22: SF | I22: 0.029 | J22: =I22*G22 -> 1099.28 | K22: $60.00 | L22: =K22*J22 -> $65,956.52 | M22: 0 | N22: =M22*G22 -> 0 | O22: =L22+N22 -> $65,957
A24: =IF(H24<>"",1+MAX(A23:A23),"") ->  | D24: SUBTOTAL | L24: =IF(H24<>"",0.4*N24,"") ->  | P24: =SUM(O15:O23) -> $209,504
A25: SUB TOTAL | L25: =SUM(L6:L24) -> $159,260 | N25: =SUM(N6:N24) -> $50,244 | O25: =SUM(O6:O24) -> $209,504 | P25: =SUM(P6:P24) -> $209,504
A26: TAX | N26: 8.5% | P26: =P25*N26 -> $17,808
A27: PROFIT | N27: 10% | P27: =P25*N27 -> $20,950
A28: CONTIGENCIES | N28: 5% | P28: =P25*N28 -> $10,475
A29: TOTAL BASE BID | P29: =SUM(P25:P28) -> $258,737
A30: General Exclusions: Any kind of controlled inspection, contaminated material, architect and engineering fees, security, building charges, signage, sign off, protection of adjoining building (if any), any work not mentioned above.
A31: General Notes: The prices used are taken from RS Means online i.e. the standard pricing, the company is not responsible for any kind of variations in the prices. So it is preferred to review the prices.

Sheet UJ (hidden)
C2: PROJECT: | D2: 625 PARK AVE PHASE 1B
C3: ADDRESS: | D3: 625 PARK AVENUE,
D4: NEW YORK, NY-10065.
H6: DATE | I6: =TODAY() -> 2026-07-28
A7: ITEM # | B7: CSI SEC. | C7: DESCRIPTION | D7: QTY. | E7: WASTE | F7: QTY. W/ WASTE | G7: UNIT | H7: UNIT COST | I7: TRADE COST | L7: Single side areas
C8: SCOPE OF WORK | L8: Dry | M8: Wet
A9: 1 | B9: 09 29 | C9: 2 layered 5/8" thick USG fiberock brand panels for walls and ceilings. | D9: 11,635 | E9: 10% | F9: =D9*(1+E9) -> 12,799 | G9: sf | H9: $4.0 | I9: =H9*F9 -> $51,194 | J9: Type 1+Type 4+Type 6+ceiling | K9: Type 1 | L9: =2520-80 -> 2440 | M9: 280 | N9: =(2440*2+290*2+2345+3830) -> 11635
A10: 2 | B10: 09 29 | C10: 2 layerd 5/8" thick USG fiberock aqua tough brand panels for wall and ceilings in wet areas. | D10: 1,185 | E10: 10% | F10: =D10*(1+E10) -> 1,304 | G10: sf | H10: $4.5 | I10: =H10*F10 -> $5,866 | J10: Type 1+Type 4+Type 6+wet ceiling | K10: Type 2 | L10: =210-80 -> 130 | M10: 80 | N10: =(280*2+325+300) -> 1185
A11: 3 | B11: 09 29 | C11: 2 layered 2 HR rated 5/8" thick USG fiberock brand panels for walls. | D11: 260 | E11: 10% | F11: =D11*(1+E11) -> 286 | G11: sf | H11: $4.5 | I11: =H11*F11 -> $1,287 | J11: Type 2 | K11: Type 3 | N11: =130*2 -> 260
A12: 4 | B12: 09 29 | C12: 2 layered 2 HR rated 5/8" thick USG fiberock aqua tough brand panels for walls in wet areas. | D12: 160 | E12: 10% | F12: 176 | G12: sf | H12: $5.0 | I12: =H12*F12 -> $880 | J12: Type 2 | K12: Type 4 | L12: 290 | N12: =80*2 -> 160
A13: 5 | B13: 09 29 | C13: 3 layered 3 HR rated 5/8" thick USG fiberock brand panels for walls. | D13: 300 | E13: 10% | F13: 330 | G13: sf | H13: $4.0 | I13: =H13*F13 -> $1,320 | J13: Type 7 | K13: Type 5 | L13: 1200 | N13: =150*2 -> 300
A14: 6 | B14: 09 26 | C14: 3/32" thick gypsum veneer plaster skim coat. | D14: 14,740 | E14: 10% | F14: 16,214 | G14: sf | H14: $4.0 | I14: =H14*F14 -> $64,856 | J14: Type 1+Type 2+ Type 4+Type 5+Type 6 +Type 7 | K14: Type 6 | L14: =2670-325 -> 2345 | M14: 325 | N14: =SUM(N9:N13)+L13 -> 14740 | O14: =SUM(L9:M10)*2+L13+SUM(L14:M14)+L15*2+SUM(L17:M17)+L12*2 -> 14740 | P14: =N14-O14 -> 0
A15: 7 | B15: 09 22 16 | C15: 3-5/8" steel studs 20 GA @ 16" O.C. | D15: 5,750 | E15: 10% | F15: 6,325 | G15: sf | H15: $2.5 | I15: =H15*F15 -> $15,813 | J15: Type 1+Type 2+Type 6+Type 7 | K15: Type 7 | L15: 150 | N15: =SUM(L9:M10)+SUM(L14:M15) -> 5750
A16: 8 | B16: 10 22 16 | C16: 1-5/8" steel studs 20 GA @ 12" O.C. | D16: 290 | E16: 10% | F16: 319 | G16: sf | H16: $2.0 | I16: $638 | J16: Type 4 | K16: Type 8 | L16: 20
A17: 8 | B17: 09 22 26 | C17: Ceiling suspension system. | D17: 4,130 | E17: 10% | F17: 4,543 | G17: sf | H17: $3.0 | I17: =H17*F17 -> $13,629 | K17: Ceiling | L17: 3830 | M17: 300 | N17: =SUM(L17:M17) -> 4130
A18: 9 | B18: 07 21 16 | C18: Batt Insulation. | D18: 5,600 | E18: 5% | F18: 5,880 | G18: sf | H18: $2.0 | I18: =H18*F18 -> $11,760 | J18: Type 1+Type 2+ Type 6 | N18: =SUM(L9:M10)+SUM(L14:M14) -> 5600
A19: 10 | B19: 07 21 16 | C19: Batt Insulation type SAFB. | D19: 150 | E19: 10% | F19: 165 | G19: sf | H19: $2.2 | I19: =H19*F19 -> $363 | J19: Type 7 | N19: 150
A21: SUB TOTAL | I21: =SUM(I9:I19) -> $167,605
A22: INSURANCE (3%) | I22: =(3/100)*I21 -> $5,028
A23: TOTAL BASE BID | I23: =SUM(I21:I22) -> $172,633
C25: Exclusions
B26: 1 | C26: Mouldings
B27: 2 | C27: Patch work
B28: 3 | C28: Fixtures
B29: 4 | C29: Electrical work
B30: 5 | C30: Stone and/or tile work
B31: 6 | C31: Wall type 8 [no details on provided on the drawing]

Sheet DETAIL (2) (hidden)
B2: PROJECT: | C2: 625 PARK AVE PHASE 1B
B3: ADDRESS: | C3: 625 PARK AVENUE
C4: NEW YORK, NY 10065
E6: DATE | F6: =TODAY() -> 2026-07-28
A7: ITEM # | B7: DESCRIPTION | C7: UNIT COST | D7: QTY. | E7: UNIT | F7: TRADE COST
B8: SCOPE OF WORK
A9: 1 | B9: 5/8" 2 layered USG fiberock brand panels. | D9: =((2358+277+2077)-644)+3830 -> 7,898 | E9: sf | F9: =C9*D9 -> 0 | G9: Type 1+Type 4+Type 6+ceiling
A10: 2 | B10: 5/8" 2 layered USG fiberock aqua tough brand panels. (Wet area). | D10: =644+292 -> 936 | E10: sf | F10: =C10*D10 -> 0 | G10: Type 1+Type 4+Type 6+wet ceiling | I10: Height 9'6"
A11: 3 | B11: 2 HR rated 5/8" 2 layered USG fiberock brand panels. | D11: =206-78 -> 128 | E11: sf | F11: 0 | G11: Type 2 | I11: For Doors & Cabinets 1'3"
A12: 4 | B12: 2 HR rated 5/8" 2 layered USG fiberock aqua tough brand panels. (Wet area). | D12: 78 | E12: sf | F12: 0 | G12: Type 2
A13: 5 | B13: 3 HR rated 5/8" 3 layered USG fiberock brand panels. | D13: 148 | E13: sf | F13: 0 | G13: Type 7
A14: 6 | B14: 3/32" thick gypsum veneer plaster skim coat. | D14: =2538+206+277+1343+2077+148 -> 6,589 | E14: sf | F14: 0 | G14: Type 1+Type 2+ Type 4+Type 5+Type 6 +Type 7
A15: 7 | B15: 3 5/8" steel studs 20 GA @ 16" O.C. | D15: 4,968 | E15: sf | F15: 0 | G15: Type 1+Type 2+Type 6+Type 7
A16: 8 | B16: 1 5/8" steel studs 20 GA @ 12" O.C. | D16: 277 | E16: sf | F16: 0 | G16: Type 4
A17: 9 | B17: Batt sound Insulation. | D17: =2538+206+2077 -> 4,821 | E17: sf | F17: 0 | G17: Type 1+Type 2+ Type 6
A18: 10 | B18: Batt sound Insulation type SAFB. | D18: 148 | E18: sf | F18: 0 | G18: Type 7 | H18: QTY Details
H19: Type 1 | I19: 2538 | J19: 2520
A20: TOTAL | F20: =SUM(F9:F18) -> 0 | H20: Type 2 | I20: 205 | J20: 206
B21: Exclusions | H21: Type 3 | I21: N/A
A22: 1 | B22: Mouldings | H22: Type 4 | I22: 277 | J22: 290
A23: 2 | B23: Patch work | H23: Type 5 | I23: 1342 | J23: 1200
A24: 3 | B24: Fixtures | H24: Type 6 | I24: 2077 | J24: 2670
A25: 4 | B25: Electrical work | H25: Type 7 | I25: 148 | J25: 150
A26: 5 | B26: Stone and/or tile work | H26: Type 8 | I26: 22 | J26: 20 | K26: No details given
A27: 6 | H27: Ceiling | I27: 3830
H28: Wet Ceiling | I28: 292
B31: DETAILS
B32: Type 1- Interior Partition | G32: Type 2- 2HR rated Interior Partition | H32: Type
B33: 2 layers 5/8' USG fiberock brand panels (Fiberock aqua tough brand at all wet areas) Glue second layer, finished with 3-32" thick gypsum veneer plaster skim coat. 3 5/8" Stl studs 20 GA @16" O.C with Batt insulation. 2 layers 5/8" USG fiberock brand panels(Fiberock aqua tough brand at all wet areas finished 3-32" thick gypsum veneer plaster skim coat | G33: 2 layers 5/8' USG fiberock brand panels (Fiberock aqua tough brand at all wet areas) Glue second layer, finished with 3-32" thick gypsum veneer plaster skim coat. 3 5/8" Stl studs 20 GA @16" O.C with Batt insulation. 2 layers 5/8" USG fiberock brand panels(Fiberock aqua tough brand at all wet areas finished 3-32" thick gypsum veneer plaster skim coat
B35: TYPE 3 Interior partition at chase | G35: TYPE 4 Pocket door partition
B36: 2 layer 5/8" USG fiberock brand panels ( Fiberock aqua tough brand at all wet areas ) Glue second layer fill batt insulation, finished with 3/32" thick gypsum veneer plaster skim coat. 20 Ga 2-1/2" mtl studs @ 16 O.C. with batt insulation. Pipe chase space. 2 layers 5/8" USG fiberock brand panels (Fiberock aqua tough brand at all wet areas finished with 3/32" thick gypsum veneer plaster skim coat. | G36: 2 Layers 5/8" USG fiberock brand panels (Fiberock Aqua tough brand at all wet areas) Glue second layer, Finished with 3/32" thick gypsum veneer plaster skim coat. 1 5/8" 20 Ga stl studs @12 O.C. 2 layer 5/8" USG fiberock brand panels (fiberock aqua tough brand at wet areas) finished with 3/32" thick gypsum veneer plaster skim coat.
B38: TYPE 5 Existing wall skim coat | G38: TYPE 6 EXISTING WALL- Furring
B39: Apply 3/32" Thick gypsum veneer skim coat. Fill and smooth all imperfections | G39: 3 5/8" 20 Ga stl studs @ 16 O.C. 2 layers 5/8" USG fiberock brand panels dimensions from exterior wall to be varified with architect. Fill with Batt insulation, Finished with 3/32" Thick Gypsum veneer plaster skim coat
B40: TYPE 7 Interior Partition- 3 Hr rated
B41: 3 layer 5/8" USG fiberock brand panels, glue third layer finished with 3/32" thick gypsum veneer plaster skim coat. 3 5/8" stl studs 20 GA @16"O.C. Batt insulation Type SAFB. 3 layer 5/8" USG fiberock brand panels, glue third layer finished with 3-32" thick gypsum veneer plaster skim coat
